Workbook

Sheet Факт рубка-16
A1: Інформація
A2: видачу сеціальних дозволів (лісорубних китків) на заготівлю деревини в порядку рубок головного користування,
A3: рубок формування та оздоровлення лісів та інших рубок, пов`язаних і не пов`язаних з веденням лісового господарства
A4: по ДП "Фастівський лісгосп" станом на 03.09.2018 року
A5: п/п№ | B5: Найменування лісництва | C5: Категорія (група) лісів | D5: Вид.спосіб рубки | E5: Головна порода | F5: № кварталу | G5: № виділу, підвиділу | H5: Площа, га. | I5: Запас деревини, куб.м | K5: Підстава для призначення рубки, площа га. | M5: Серія та № лісорубного квитка | N5: Дата видачі | O5: Місцезнаходження | P5: GPS- координати (за наявності) | Q5: Примітка (анулювання, заміна, відстрочення, тощо)
I6: Загальний | J6: Ліквідний | K6: матеріали лісовпорядкування | L6: обстеження лісокористувача
A7: 1 | B7: 2 | C7: 3 | D7: 4 | E7: 5 | F7: 6 | G7: 7 | H7: 8 | I7: 9 | J7: 10 | K7: 11 | L7: 12 | M7: 13 | N7: 14 | O7: 15 | P7: 16 | Q7: 17 | R7: 18 | S7: 19 | T7: 20
A8: 1 | B8: 1. Рубки головного користування
B9: Веприківське | C9: 4 | D9: РГК | E9: хв. | F9: 49 | G9: 4 | H9: 1 | I9: 216 | J9: 195 | K9: так | L9: - | M9: С02ЛКБ 542705 | N9: 2018-01-02 | O9: ДЛГ | P9: - | Q9: -
B10: Веприківське | C10: 4 | D10: РГК | E10: твер. | F10: 48 | G10: 3 | H10: 0.8 | I10: 234 | J10: 223 | K10: так | L10: - | M10: С02ЛКБ 542705 | N10: 2018-01-02 | O10: ДЛГ | P10: - | Q10: -
B11: Веприківське | C11: 4 | D11: РГК | E11: хв. | F11: 32 | G11: 3 | H11: 0.9 | I11: 417 | J11: 377 | K11: так | L11: - | M11: С02ЛКБ 542706 | N11: 2018-01-02 | O11: ДЛГ | P11: - | Q11: -
B12: Веприківське | C12: 4 | D12: РГК | E12: хв. | F12: 24 | G12: 1.2 | H12: 1 | I12: 144 | J12: 131 | K12: так | L12: - | M12: С02ЛКБ 542707 | N12: 2018-01-02 | O12: ДЛГ | P12: - | Q12: -
B13: Веприківське | C13: 4 | D13: РГК | E13: хв. | F13: 22 | G13: 8.4 | H13: 0.9 | I13: 335 | J13: 307 | K13: так | L13: - | M13: С02ЛКБ 542707 | N13: 2018-01-02 | O13: ДЛГ | P13: - | Q13: -
B14: Веприківське | C14: 4 | D14: РГК | E14: хв. | F14: 6 | G14: 7.2 | H14: 1 | I14: 273 | J14: 252 | K14: так | L14: - | M14: С02ЛКБ 542749 | N14: 2018-04-02 | O14: ДЛГ | P14: - | Q14: -
B15: Веприківське | C15: 4 | D15: РГК | E15: твер. | F15: 48 | G15: 11.1 | H15: 0.8 | I15: 213 | J15: 201 | K15: так | L15: - | M15: С02ЛКБ 542749 | N15: 2018-04-02 | O15: ДЛГ | P15: - | Q15: -
B16: Веприківське | C16: 4 | D16: РГК | E16: хв. | F16: 22 | G16: 8.5 | H16: 0.9 | I16: 311 | J16: 283 | K16: так | L16: - | M16: С02ЛКБ 542746 | N16: 2018-04-02 | O16: ДЛГ | P16: - | Q16: -
B17: Веприківське | C17: 4 | D17: РГК | E17: хв. | F17: 49 | G17: 14.1 | H17: 1 | I17: 282 | J17: 256 | K17: так | L17: - | M17: С02ЛКБ 542744 | N17: 2018-04-02 | O17: ДЛГ | P17: - | Q17: -
B18: Веприківське | C18: 4 | D18: РГК | E18: твер. | F18: 48 | G18: 7.1 | H18: 0.9 | I18: 330 | J18: 310 | K18: так | L18: - | M18: С02ЛКБ 005314 | N18: 2018-07-02 | O18: ДЛГ | P18: - | Q18: -
B19: Веприківське | C19: 4 | D19: РГК | E19: твер. | F19: 48 | G19: 7.2 | H19: 1 | I19: 350 | J19: 331 | K19: так | L19: - | M19: С02ЛКБ 005314 | N19: 2018-07-02 | O19: ДЛГ | P19: - | Q19: -
B20: Веприківське | C20: 4 | D20: РГК | E20: хв. | F20: 37 | G20: 34 | H20: 0.9 | I20: 346 | J20: 317 | K20: так | L20: - | M20: С02ЛКБ 005315 | N20: 2018-07-02 | O20: ДЛГ | P20: - | Q20: -
B21: Веприківське | C21: 4 | D21: РГК | E21: хв. | F21: 50 | G21: 5 | H21: 1 | I21: 316 | J21: 291 | K21: так | L21: - | M21: С02ЛКБ 005316 | N21: 2018-07-02 | O21: ДЛГ | P21: - | Q21: -
B22: Веприківське | C22: 4 | D22: РГК | E22: хв. | F22: 80 | G22: 9.2 | H22: 0.2 | I22: 83 | J22: 76 | K22: так | L22: так | M22: С02ЛКБ 005334 | N22: 2018-08-08 | O22: ДЛГ | P22: - | Q22: -
B23: Веприківське | C23: 4 | D23: РГК | E23: хв. | F23: 41 | G23: 4.3 | H23: 0.8 | I23: 412 | J23: 377 | K23: так | L23: так | M23: С02ЛКБ 005333 | N23: 2018-08-08 | O23: ДЛГ | P23: - | Q23: -
B24: Дорогинське | C24: 2 | D24: РГК | E24: м`як. | F24: 11 | G24: 17 | H24: 1 | I24: 412 | J24: 398 | K24: так | L24: - | M24: С02ЛКБ 542703 | N24: 2018-01-02 | O24: ДЛГ | P24: - | Q24: -
B25: Дорогинське | C25: 2 | D25: РГК | E25: хв. | F25: 28 | G25: 3.1 | H25: 0.9 | I25: 367 | J25: 338 | K25: так | L25: - | M25: С02ЛКБ 542702 | N25: 2018-01-02 | O25: ДЛГ | P25: - | Q25: -
B44: Дорогинське | C44: 2 | D44: РГК | E44: твер. | F44: 4 | G44: 34 | H44: 1 | I44: 297 | J44: 285 | K44: так | L44: - | M44: С02ЛКБ 542704 | N44: 2018-01-02 | O44: ДЛГ | P44: - | Q44: -
B45: Дорогинське | C45: 2 | D45: РГК | E45: твер. | F45: 4 | G45: 15 | H45: 1 | I45: 290 | J45: 276 | K45: так | L45: - | M45: С02ЛКБ 542704 | N45: 2018-01-02 | O45: ДЛГ | P45: - | Q45: -
B46: Дорогинське | C46: 2 | D46: РГК | E46: хв. | F46: 15 | G46: 13.1 | H46: 0.7 | I46: 298 | J46: 271 | K46: так | L46: - | M46: С02ЛКБ 542742 | N46: 2018-04-02 | O46: ДЛГ | P46: - | Q46: -
B47: Дорогинське | C47: 2 | D47: РГК | E47: хв. | F47: 14 | G47: 15 | H47: 1 | I47: 404 | J47: 373 | K47: так | L47: - | M47: С02ЛКБ 542742 | N47: 2018-04-02 | O47: ДЛГ | P47: - | Q47: -
B48: Дорогинське | C48: 2 | D48: РГК | E48: хв. | F48: 11 | G48: 2 | H48: 1 | I48: 475 | J48: 444 | K48: так | L48: - | M48: С02ЛКБ005312 | N48: 2018-07-02 | O48: ДЛГ | P48: - | Q48: -
B49: Дорогинське | C49: 2 | D49: РГК | E49: хв. | F49: 30 | G49: 20 | H49: 1 | I49: 568 | J49: 526 | K49: так | L49: - | M49: С02ЛКБ005313 | N49: 2018-07-02 | O49: ДЛГ | P49: - | Q49: -
B50: Дорогинське | C50: 2 | D50: РГК | E50: хв. | F50: 34 | G50: 3.1 | H50: 0.6 | I50: 243 | J50: 220 | K50: так | L50: - | M50: С02ЛКБ005313 | N50: 2018-07-02 | O50: ДЛГ | P50: - | Q50: -
B51: Дорогинське | C51: 2 | D51: РГК | E51: хв. | F51: 26 | G51: 4 | H51: 1 | I51: 405 | J51: 369 | K51: так | L51: - | M51: С02ЛКБ005313 | N51: 2018-07-02 | O51: ДЛГ | P51: - | Q51: -
B52: Дорогинське | C52: 2 | D52: РГК | E52: хв. | F52: 34 | G52: 16 | H52: 1 | I52: 358 | J52: 324 | K52: так | L52: так | M52: С02ЛКБ005332 | N52: 2018-08-08 | O52: ДЛГ | P52: - | Q52: -
B53: Дорогинське | C53: 2 | D53: РГК | E53: хв. | F53: 6 | G53: 14 | H53: 0.4 | I53: 197 | J53: 180 | K53: так | L53: так | M53: С02ЛКБ005331 | N53: 2018-08-08 | O53: ДЛГ | P53: - | Q53: -
B54: Снітинське | C54: 2 | D54: РГК | E54: хв. | F54: 1 | G54: 20 | H54: 0.9 | I54: 324 | J54: 300 | K54: так | L54: - | M54: С02ЛКБ 542708 | N54: 2018-01-02 | O54: ДЛГ | P54: - | Q54: -
B55: Снітинське | C55: 2 | D55: РГК | E55: хв. | F55: 70 | G55: 15 | H55: 1 | I55: 329 | J55: 307 | K55: так | L55: - | M55: С02ЛКБ 542708 | N55: 2018-01-02 | O55: ДЛГ | P55: - | Q55: -
B56: Снітинське | C56: 2 | D56: РГК | E56: хв. | F56: 68 | G56: 20 | H56: 0.9 | I56: 209 | J56: 197 | K56: так | L56: - | M56: С02ЛКБ 542747 | N56: 2018-04-02 | O56: ДЛГ | P56: - | Q56: -
B57: Снітинське | C57: 2 | D57: РГК | E57: хв. | F57: 3 | G57: 2 | H57: 1 | I57: 351 | J57: 324 | K57: так | L57: - | M57: С02ЛКБ 542747 | N57: 2018-04-02 | O57: ДЛГ | P57: - | Q57: -
B58: Снітинське | C58: 2 | D58: РГК | E58: хв. | F58: 3 | G58: 6 | H58: 0.6 | I58: 189 | J58: 174 | K58: так | L58: - | M58: С02ЛКБ 005324 | N58: 2018-07-23 | O58: ДЛГ | P58: - | Q58: -
B59: Снітинське | C59: 2 | D59: РГК | E59: хв. | F59: 64 | G59: 23.3 | H59: 1 | I59: 289 | J59: 269 | K59: так | L59: - | M59: С02ЛКБ 005335 | N59: 2018-08-08 | O59: ДЛГ | P59: - | Q59: -
B60: Снітинське | C60: 2 | D60: РГК | E60: хв. | F60: 71 | G60: 10 | H60: 1 | I60: 59 | J60: 54 | K60: так | L60: - | M60: С02ЛКБ 005335 | N60: 2018-08-08 | O60: ДЛГ | P60: - | Q60: -
B61: Снітинське | C61: 2 | D61: РГК | E61: хв. | F61: 64 | G61: 23.2 | H61: 0.9 | I61: 199 | J61: 185 | K61: так | L61: так | M61: С02ЛКБ 005335 | N61: 2018-08-08 | O61: ДЛГ | P61: - | Q61: -
B62: Снітинське | C62: 2 | D62: РГК | E62: хв. | F62: 3 | G62: 17.1 | H62: 1 | I62: 167 | J62: 155 | K62: так | L62: так | M62: С02ЛКБ 005335 | N62: 2018-08-08 | O62: ДЛГ | P62: - | Q62: -
B63: Снітинське | C63: 2 | D63: РГК | E63: хв. | F63: 3 | G63: 17.2 | H63: 1 | I63: 193 | J63: 178 | K63: так | L63: так | M63: С02ЛКБ 005335 | N63: 2018-08-08 | O63: ДЛГ | P63: - | Q63: -
B64: Снітинське | C64: 2 | D64: РГК | E64: хв. | F64: 1 | G64: 26.1 | H64: 1 | I64: 285 | J64: 263 | K64: так | L64: так | M64: С02ЛКБ 005335 | N64: 2018-08-08 | O64: ДЛГ | P64: - | Q64: -
B65: Снітинське | C65: 2 | D65: РГК | E65: хв. | F65: 1 | G65: 3.2 | H65: 0.9 | I65: 293 | J65: 273 | K65: так | L65: так | M65: С02ЛКБ 005336 | N65: 2018-08-08 | O65: ДЛГ | P65: - | Q65: -
B66: Снітинське | C66: 2 | D66: РГК | E66: хв. | F66: 1 | G66: 3.3 | H66: 0.4 | I66: 140 | J66: 129 | K66: так | L66: так | M66: С02ЛКБ 005342 | N66: 2018-08-14 | O66: ДЛГ | P66: - | Q66: -
B67: Фастівське | C67: 3 | D67: РГК | E67: твер. | F67: 71 | G67: 1.1 | H67: 1 | I67: 348 | J67: 325 | K67: так | L67: - | M67: С02ЛКБ 542701 | N67: 2018-01-02 | O67: ДЛГ | P67: - | Q67: -
B68: Фастівське | C68: 4 | D68: РГК | E68: твер. | F68: 88 | G68: 7.1 | H68: 1 | I68: 338 | J68: 320 | K68: так | L68: - | M68: С02ЛКБ 542701 | N68: 2018-01-02 | O68: ДЛГ | P68: - | Q68: -
K69: так | L69: - | M69: С02ЛКБ 542701 | N69: 2018-01-02 | O69: ДЛГ | P69: - | Q69: -
B70: Фастівське | C70: 4 | D70: РГК | E70: твер. | F70: 88 | G70: 7.2 | H70: 0.7 | I70: 268 | J70: 254 | K70: так | L70: - | M70: С02ЛКБ 542701 | N70: 2018-01-02 | O70: ДЛГ | P70: - | Q70: -
B71: Фастівське | C71: 3 | D71: РГК | E71: твер. | F71: 41 | G71: 7.4 | H71: 1 | I71: 294 | J71: 277 | K71: так | L71: - | M71: С02ЛКБ 005317 | N71: 2018-07-02 | O71: ДЛГ | P71: - | Q71: -
B72: Всього | D72: РГК | H72: =SUM(H9:H71) -> 39 | I72: =SUM(I9:I71) -> 12851 | J72: =SUM(J9:J71) -> 11915
A73: 2 | B73: 2.Рубки формування та оздоровлення лісів
B74: Веприківське | C74: 4 | D74: ОСВ | E74: хв. | F74: 67 | G74: 23 | H74: 3 | I74: 10 | K74: так | L74: - | M74: С02ЛКБ542727 | N74: 2018-02-16 | O74: ДЛГ | P74: - | Q74: -
B75: Веприківське | C75: 3 | D75: ОСВ | E75: хв. | F75: 83 | G75: 1 | H75: 2 | I75: 12 | K75: так | L75: - | M75: С02ЛКБ542727 | N75: 2018-02-16 | O75: ДЛГ | P75: - | Q75: -
B76: Веприківське | C76: 4 | D76: ОСВ | E76: хв. | F76: 42 | G76: 9 | H76: 6 | I76: 16 | K76: так | L76: - | M76: С02ЛКБ542727 | N76: 2018-02-16 | O76: ДЛГ | P76: - | Q76: -
B77: Веприківське | C77: 4 | D77: ОСВ | E77: хв. | F77: 68 | G77: 13 | H77: 1.1 | I77: 10 | K77: так | L77: - | M77: С02ЛКБ005297 | N77: 2018-05-31 | O77: ДЛГ | P77: - | Q77: -
B78: Веприківське | C78: 4 | D78: ОСВ | E78: твер. | F78: 68 | G78: 16 | H78: 1.6 | I78: 12 | K78: так | L78: - | M78: С02ЛКБ005297 | N78: 2018-05-31 | O78: ДЛГ | P78: - | Q78: -
B79: Веприківське | C79: 4 | D79: ОСВ | E79: хв. | F79: 31 | G79: 10 | H79: 3.2 | I79: 33 | K79: так | L79: - | M79: С02ЛКБ005322 | N79: 2018-07-20 | O79: ДЛГ | P79: - | Q79: -
B80: Веприківське | C80: 4 | D80: ОСВ | E80: хв. | F80: 69 | G80: 10 | H80: 4.8 | I80: 10 | K80: так | L80: - | M80: С02ЛКБ005322 | N80: 2018-07-20 | O80: ДЛГ | P80: - | Q80: -
B81: Веприківське | C81: 4 | D81: ОСВ | E81: хв. | F81: 19 | G81: 19 | H81: 2.4 | I81: 22 | K81: так | L81: - | M81: С02ЛКБ005351 | N81: 2018-08-30 | O81: ДЛГ | P81: - | Q81: -
B82: Дорогинське | C82: 2 | D82: ОСВ | E82: твер. | F82: 3 | G82: 19 | H82: 3.2 | I82: 35 | K82: так | L82: - | M82: С02ЛКБ542709 | N82: 2018-01-02 | O82: ДЛГ | P82: - | Q82: -
B83: Дорогинське | C83: 2 | D83: ОСВ | E83: хв. | F83: 3 | G83: 28 | H83: 2 | I83: 11 | K83: так | L83: - | M83: С02ЛКБ542709 | N83: 2018-01-02 | O83: ДЛГ | P83: - | Q83: -
B84: Дорогинське | C84: 2 | D84: ОСВ | E84: хв. | F84: 19 | G84: 10 | H84: 2.2 | I84: 8 | K84: так | L84: - | M84: С02ЛКБ542709 | N84: 2018-01-02 | O84: ДЛГ | P84: - | Q84: -
B85: Дорогинське | C85: 2 | D85: ОСВ | E85: твер. | F85: 75 | G85: 13 | H85: 4.3 | I85: 37 | K85: так | L85: - | M85: С02ЛКБ542709 | N85: 2018-01-02 | O85: ДЛГ | P85: - | Q85: -
B86: Снітинське | C86: 2 | D86: ОСВ | E86: хв. | F86: 68 | G86: 7 | H86: 3 | I86: 35 | K86: так | L86: - | M86: С02ЛКБ542712 | N86: 2018-01-16 | O86: ДЛГ | P86: - | Q86: -
B87: Снітинське | C87: 2 | D87: ОСВ | E87: хв. | F87: 39 | G87: 2 | H87: 3 | I87: 23 | K87: так | L87: - | M87: С02ЛКБ542712 | N87: 2018-01-16 | O87: ДЛГ | P87: - | Q87: -
B88: Снітинське | C88: 2 | D88: ОСВ | E88: хв. | F88: 45 | G88: 2 | H88: 3.5 | I88: 20 | K88: так | L88: - | M88: С02ЛКБ542739 | N88: 2018-03-26 | O88: ДЛГ | P88: - | Q88: -
B89: Снітинське | C89: 2 | D89: ОСВ | E89: хв. | F89: 64 | G89: 2 | H89: 6 | I89: 64 | K89: так | L89: - | M89: С02ЛКБ005353 | N89: 2018-08-31 | O89: ДЛГ | P89: - | Q89: -
B90: Снітинське | C90: 2 | D90: ОСВ | E90: хв. | F90: 45 | G90: 6 | H90: 3.6 | I90: 26 | K90: так | L90: - | M90: С02ЛКБ542739 | N90: 2018-03-26 | O90: ДЛГ | P90: - | Q90: -
B91: Фастівське | C91: 4 | D91: ОСВ | E91: хв. | F91: 117 | G91: 33 | H91: 0.8 | I91: 16 | K91: так | L91: - | M91: С02ЛКБ542715 | N91: 2018-01-02 | O91: ДЛГ | P91: - | Q91: -
B92: Фастівське | C92: 4 | D92: ОСВ | E92: хв. | F92: 118 | G92: 2 | H92: 2.3 | I92: 26 | K92: так | L92: - | M92: С02ЛКБ542715 | N92: 2018-01-02 | O92: ДЛГ | P92: - | Q92: -
B93: Фастівське | C93: 3 | D93: ОСВ | E93: хв. | F93: 74 | G93: 9 | H93: 2 | I93: 42 | K93: так | L93: - | M93: С02ЛКБ542725 | N93: 2018-02-16 | O93: ДЛГ | P93: - | Q93: -
B94: Всього | D94: ОСВ | H94: =SUM(H74:H93) -> 60 | I94: =SUM(I74:I93) -> 468
B95: Веприківське | C95: 4 | D95: ПРЧ | E95: хв. | F95: 13 | G95: 7 | H95: 4.5 | I95: 116 | K95: так | L95: - | M95: С02ЛКБ542696 | N95: 2018-01-02 | O95: ДЛГ | P95: - | Q95: - | R95: -
B96: Веприківське | C96: 4 | D96: ПРЧ | E96: хв. | F96: 53 | G96: 2 | H96: 5.1 | I96: 160 | K96: так | L96: - | M96: С02ЛКБ542696 | N96: 2018-01-02 | O96: ДЛГ | P96: - | Q96: -
B97: Веприківське | C97: 4 | D97: ПРЧ | E97: хв. | F97: 53 | G97: 9 | H97: 6 | I97: 192 | K97: так | L97: - | M97: С02ЛКБ542696 | N97: 2018-01-02 | O97: ДЛГ | P97: - | Q97: -
B98: Веприківське | C98: 4 | D98: ПРЧ | E98: хв. | F98: 74 | G98: 12 | H98: 4.5 | I98: 20 | K98: так | L98: - | M98: С02ЛКБ542696 | N98: 2018-01-02 | O98: ДЛГ | P98: - | Q98: -
B99: Веприківське | C99: 4 | D99: ПРЧ | E99: хв. | F99: 79 | G99: 12 | H99: 2.9 | I99: 14 | K99: так | L99: - | M99: С02ЛКБ542696 | N99: 2018-01-02 | O99: ДЛГ | P99: - | Q99: -
B100: Веприківське | C100: 4 | D100: ПРЧ | E100: хв. | F100: 86 | G100: 7 | H100: 3.5 | I100: 60 | J100: 10 | K100: так | L100: - | M100: С02ЛКБ542696 | N100: 2018-01-02 | O100: ДЛГ | P100: - | Q100: -
B101: Веприківське | C101: 4 | D101: ПРЧ | E101: хв. | F101: 88 | G101: 5 | H101: 1.3 | I101: 9 | K101: так | L101: - | M101: С02ЛКБ542696 | N101: 2018-01-02 | O101: ДЛГ | P101: - | Q101: -
B102: Веприківське | C102: 4 | D102: ПРЧ | E102: хв. | F102: 26 | G102: 10 | H102: 13 | I102: 176 | K102: так | L102: - | M102: С02ЛКБ542696 | N102: 2018-01-02 | O102: ДЛГ | P102: - | Q102: -
B103: Веприківське | C103: 4 | D103: ПРЧ | E103: хв. | F103: 71 | G103: 10 | H103: 3 | I103: 36 | K103: так | L103: - | M103: С02ЛКБ542728 | N103: 2018-02-16 | O103: ДЛГ | P103: - | Q103: -
B104: Веприківське | C104: 4 | D104: ПРЧ | E104: хв. | F104: 71 | G104: 12 | H104: 2.8 | I104: 22 | K104: так | L104: - | M104: С02ЛКБ542728 | N104: 2018-02-16 | O104: ДЛГ | P104: - | Q104: -
B105: Веприківське | C105: 4 | D105: ПРЧ | E105: хв. | F105: 33 | G105: 8 | H105: 1.2 | I105: 22 | K105: так | L105: - | M105: С02ЛКБ542728 | N105: 2018-02-16 | O105: ДЛГ | P105: - | Q105: -
B106: Веприківське | C106: 3 | D106: ПРЧ | E106: хв. | F106: 17 | G106: 3 | H106: 6.4 | I106: 149 | K106: так | L106: - | M106: С02ЛКБ542728 | N106: 2018-02-16 | O106: ДЛГ | P106: - | Q106: -
B107: Веприківське | C107: 4 | D107: ПРЧ | E107: хв. | F107: 19 | G107: 17 | H107: 5.4 | I107: 86 | K107: так | L107: - | M107: С02ЛКБ005280 | N107: 2018-04-16 | O107: ДЛГ | P107: - | Q107: -
B108: Веприківське | C108: 4 | D108: ПРЧ | E108: хв. | F108: 68 | G108: 7 | H108: 4.4 | I108: 36 | K108: так | L108: - | M108: С02ЛКБ005298 | N108: 2018-05-31 | O108: ДЛГ | P108: - | Q108: -
B109: Веприківське | C109: 4 | D109: ПРЧ | E109: хв. | F109: 14 | G109: 6 | H109: 3.9 | I109: 98 | J109: 4 | K109: так | L109: - | M109: С02ЛКБ005323 | N109: 2018-07-20 | O109: ДЛГ | P109: - | Q109: -
B110: Веприківське | C110: 4 | D110: ПРЧ | E110: хв. | F110: 21 | G110: 12 | H110: 1.2 | I110: 43 | K110: так | L110: - | M110: С02ЛКБ005323 | N110: 2018-07-20 | O110: ДЛГ | P110: - | Q110: -
B111: Веприківське | C111: 4 | D111: ПРЧ | E111: хв. | F111: 46 | G111: 8 | H111: 5.5 | I111: 81 | J111: 7 | K111: так | L111: - | M111: С02ЛКБ005327 | N111: 2018-07-30 | O111: ДЛГ | P111: - | Q111: -
B112: Веприківське | C112: 4 | D112: ПРЧ | E112: хв. | F112: 46 | G112: 6 | H112: 5.8 | I112: 124 | J112: 7 | K112: так | L112: - | M112: С02ЛКБ005339 | N112: 2018-08-10 | O112: ДЛГ | P112: - | Q112: -
B113: Веприківське | C113: 4 | D113: ПРЧ | E113: твер. | F113: 66 | G113: 2 | H113: 0.7 | I113: 20 | K113: так | L113: - | M113: С02ЛКБ005339 | N113: 2018-08-10 | O113: ДЛГ | P113: - | Q113: -
B114: Веприківське | C114: 4 | D114: ПРЧ | E114: твер. | F114: 75 | G114: 17 | H114: 6.5 | I114: 166 | J114: 43 | K114: так | L114: - | M114: С02ЛКБ005339 | N114: 2018-08-10 | O114: ДЛГ | P114: - | Q114: -
B115: Дорогинське | C115: 2 | D115: ПРЧ | E115: твер. | F115: 3 | G115: 16 | H115: 3.3 | I115: 33 | K115: так | L115: - | M115: С02ЛКБ542710 | N115: 2018-01-02 | O115: ДЛГ | P115: - | Q115: -
B116: Дорогинське | C116: 2 | D116: ПРЧ | E116: твер. | F116: 76 | G116: 10 | H116: 3.5 | I116: 83 | K116: так | L116: - | M116: С02ЛКБ542710 | N116: 2018-01-02 | O116: ДЛГ | P116: - | Q116: -
B117: Дорогинське | C117: 2 | D117: ПРЧ | E117: твер. | F117: 76 | G117: 3 | H117: 4.4 | I117: 102 | K117: так | L117: - | M117: С02ЛКБ542710 | N117: 2018-01-02 | O117: ДЛГ | P117: - | Q117: -
B118: Дорогинське | C118: 2 | D118: ПРЧ | E118: хв. | F118: 10 | G118: 11 | H118: 4.3 | I118: 46 | K118: так | L118: - | M118: С02ЛКБ005300 | N118: 2018-05-31 | O118: ДЛГ | P118: - | Q118: -
B119: Дорогинське | C119: 2 | D119: ПРЧ | E119: твер. | F119: 18 | G119: 13 | H119: 4 | I119: 66 | K119: так | L119: - | M119: С02ЛКБ005300 | N119: 2018-05-31 | O119: ДЛГ | P119: - | Q119: -
B120: Дорогинське | C120: 2 | D120: ПРЧ | E120: хв. | F120: 18 | G120: 14 | H120: 1 | I120: 12 | K120: так | L120: - | M120: С02ЛКБ005300 | N120: 2018-05-31 | O120: ДЛГ | P120: - | Q120: -
B121: Дорогинське | C121: 2 | D121: ПРЧ | E121: хв. | F121: 30 | G121: 4 | H121: 4.5 | I121: 84 | K121: так | L121: - | M121: С02ЛКБ005300 | N121: 2018-05-31 | O121: ДЛГ | P121: - | Q121: -
B122: Дорогинське | C122: 2 | D122: ПРЧ | E122: хв. | F122: 30 | G122: 21 | H122: 3.3 | I122: 83 | K122: так | L122: - | M122: С02ЛКБ005300 | N122: 2018-05-31 | O122: ДЛГ | P122: - | Q122: -
B123: Дорогинське | C123: 2 | D123: ПРЧ | E123: хв. | F123: 39 | G123: 10 | H123: 5.5 | I123: 100 | K123: так | L123: - | M123: С02ЛКБ005300 | N123: 2018-05-31 | O123: ДЛГ | P123: - | Q123: -
B124: Дорогинське | C124: 2 | D124: ПРЧ | E124: хв. | F124: 60 | G124: 13 | H124: 1.3 | I124: 19 | K124: так | L124: - | M124: С02ЛКБ005300 | N124: 2018-05-31 | O124: ДЛГ | P124: - | Q124: -
B125: Снітинське | C125: 2 | D125: ПРЧ | E125: хв. | F125: 83 | G125: 8 | H125: 2 | I125: 52 | K125: так | L125: - | M125: С02ЛКБ542713 | N125: 2018-01-16 | O125: ДЛГ | P125: - | Q125: -
B126: Снітинське | C126: 2 | D126: ПРЧ | E126: хв. | F126: 63 | G126: 12 | H126: 8.5 | I126: 248 | K126: так | L126: - | M126: С02ЛКБ542713 | N126: 2018-01-16 | O126: ДЛГ | P126: - | Q126: -
B127: Снітинське | C127: 2 | D127: ПРЧ | E127: хв. | F127: 1 | G127: 8 | H127: 7.3 | I127: 223 | K127: так | L127: - | M127: С02ЛКБ542713 | N127: 2018-01-16 | O127: ДЛГ | P127: - | Q127: -
B128: Снітинське | C128: 2 | D128: ПРЧ | E128: м`як. | F128: 73 | G128: 10 | H128: 1.8 | I128: 49 | K128: так | L128: - | M128: С02ЛКБ542740 | N128: 2018-03-26 | O128: ДЛГ | P128: - | Q128: -
B129: Снітинське | C129: 2 | D129: ПРЧ | E129: хв. | F129: 3 | G129: 5 | H129: 1.3 | I129: 44 | K129: так | L129: - | M129: С02ЛКБ005285 | N129: 2018-04-24 | O129: ДЛГ | P129: - | Q129: -
B130: Снітинське | C130: 2 | D130: ПРЧ | E130: хв. | F130: 3 | G130: 12 | H130: 6.5 | I130: 203 | K130: так | L130: - | M130: С02ЛКБ005285 | N130: 2018-04-24 | O130: ДЛГ | P130: - | Q130: -
B131: Фастівське | C131: 1 | D131: ПРЧ | E131: хв. | F131: 30 | G131: 12 | H131: 2 | I131: 40 | K131: так | L131: - | M131: С02ЛКБ542716 | N131: 2018-01-02 | O131: ДЛГ | P131: - | Q131: -
B132: Фастівське | C132: 4 | D132: ПРЧ | E132: хв. | F132: 52 | G132: 6 | H132: 2.1 | I132: 28 | K132: так | L132: - | M132: С02ЛКБ542716 | N132: 2018-01-02 | O132: ДЛГ | P132: - | Q132: -
B133: Фастівське | C133: 4 | D133: ПРЧ | E133: хв. | F133: 53 | G133: 5 | H133: 1.6 | I133: 13 | K133: так | L133: - | M133: С02ЛКБ542716 | N133: 2018-01-02 | O133: ДЛГ | P133: - | Q133: -
B134: Фастівське | C134: 4 | D134: ПРЧ | E134: хв. | F134: 53 | G134: 7 | H134: 2 | I134: 15 | K134: так | L134: - | M134: С02ЛКБ542716 | N134: 2018-01-02 | O134: ДЛГ | P134: - | Q134: -
B135: Фастівське | C135: 4 | D135: ПРЧ | E135: хв. | F135: 117 | G135: 24 | H135: 3.3 | I135: 76 | K135: так | L135: - | M135: С02ЛКБ542726 | N135: 2018-02-16 | O135: ДЛГ | P135: - | Q135: -
B136: Фастівське | C136: 4 | D136: ПРЧ | E136: хв. | F136: 117 | G136: 13 | H136: 1.5 | I136: 54 | K136: так | L136: - | M136: С02ЛКБ005282 | N136: 2018-04-20 | O136: ДЛГ | P136: - | Q136: -
B137: Фастівське | C137: 4 | D137: ПРЧ | E137: хв. | F137: 118 | G137: 13 | H137: 2.6 | I137: 78 | K137: так | L137: - | M137: С02ЛКБ005282 | N137: 2018-04-20 | O137: ДЛГ | P137: - | Q137: -
B138: Фастівське | C138: 4 | D138: ПРЧ | E138: твер. | F138: 66 | G138: 5 | H138: 3.2 | I138: 125 | K138: так | L138: - | M138: С02ЛКБ005294 | N138: 2018-05-16 | O138: ДЛГ | P138: - | Q138: -
B139: Фастівське | C139: 4 | D139: ПРЧ | E139: твер. | F139: 70 | G139: 5 | H139: 2.8 | I139: 93 | K139: так | L139: - | M139: С02ЛКБ005294 | N139: 2018-05-16 | O139: ДЛГ | P139: - | Q139: -
B140: Фастівське | C140: 4 | D140: ПРЧ | E140: твер. | F140: 27 | G140: 4 | H140: 5.5 | I140: 157 | K140: так | L140: - | M140: С02ЛКБ005320 | N140: 2018-07-30 | O140: ДЛГ | P140: - | Q140: -
B141: Вього | D141: ПРЧ | H141: =SUM(H95:H140) -> 176.7 | I141: =SUM(I95:I140) -> 3756 | J141: =SUM(J95:J117) -> 71
B142: Веприківське | C142: 4 | D142: ПРЖ | E142: хв. | F142: 25 | G142: 15 | H142: 5.3 | I142: 328 | J142: 180 | K142: так | L142: - | M142: С02ЛКБ542718 | N142: 2018-01-19 | O142: ДЛГ | P142: - | Q142: -
B143: Веприківське | C143: 4 | D143: ПРЖ | E143: хв. | F143: 53 | G143: 8 | H143: 4.7 | I143: 128 | J143: 108 | K143: так | L143: - | M143: С02ЛКБ542736 | N143: 2018-03-20 | O143: ДЛГ | P143: - | Q143: -
B144: Веприківське | C144: 4 | D144: ПРЖ | E144: хв. | F144: 46 | G144: 3 | H144: 5.8 | I144: 138 | J144: 115 | K144: так | L144: - | M144: С02ЛКБ542736 | N144: 2018-08-06 | O144: ДЛГ | P144: - | Q144: -
B145: Веприківське | C145: 4 | D145: ПРЖ | E145: хв. | F145: 25 | G145: 12 | H145: 5.1 | I145: 301 | J145: 147 | K145: так | L145: - | M145: С02ЛКБ005341 | N145: 2018-08-14 | O145: ДЛГ | P145: - | Q145: -
B146: Веприківське | C146: 3 | D146: ПРЖ | E146: твер. | F146: 85 | G146: 11 | H146: 3.7 | I146: 210 | J146: 90 | K146: так | L146: - | M146: С02ЛКБ005341 | N146: 2018-08-14 | O146: ДЛГ | P146: - | Q146: -
B147: Дорогинське | C147: 2 | D147: ПРЖ | E147: хв. | F147: 10 | G147: 17 | H147: 4.3 | I147: 41 | J147: 25 | K147: так | L147: - | M147: С02ЛКБ542711 | N147: 2018-01-02 | O147: ДЛГ | P147: - | Q147: -
B148: Дорогинське | C148: 2 | D148: ПРЖ | E148: хв. | F148: 4 | G148: 30 | H148: 0.5 | I148: 5 | J148: 5 | K148: так | L148: - | M148: С02ЛКБ005276 | N148: 2018-04-03 | O148: ДЛГ | P148: - | Q148: -
B149: Дорогинське | C149: 2 | D149: ПРЖ | E149: хв. | F149: 4 | G149: 31 | H149: 1.5 | I149: 42 | J149: 39 | K149: так | L149: - | M149: С02ЛКБ005276 | N149: 2018-04-03 | O149: ДЛГ | P149: - | Q149: -
B150: Дорогинське | C150: 2 | D150: ПРЖ | E150: хв. | F150: 27 | G150: 4 | H150: 0.6 | I150: 12 | J150: 5 | K150: так | L150: - | M150: С02ЛКБ005276 | N150: 2018-04-03 | O150: ДЛГ | P150: - | Q150: -
B151: Дорогинське | C151: 2 | D151: ПРЖ | E151: м`як. | F151: 74 | G151: 6 | H151: 4.7 | I151: 272 | J151: 176 | K151: так | L151: - | M151: С02ЛКБ005291 | N151: 2018-05-14 | O151: ДЛГ | P151: - | Q151: -
B152: Дорогинське | C152: 2 | D152: ПРЖ | E152: м`як. | F152: 74 | G152: 8 | H152: 4.2 | I152: 73 | J152: 70 | K152: так | L152: - | M152: С02ЛКБ005291 | N152: 2018-05-14 | O152: ДЛГ | P152: - | Q152: -
B153: Снітинське | C153: 2 | D153: ПРЖ | E153: хв. | F153: 67 | G153: 7 | H153: 2.6 | I153: 80 | J153: 32 | K153: так | L153: - | M153: С02ЛКБ5427147 | N153: 2018-01-18 | O153: ДЛГ | P153: - | Q153: -
B154: Снітинське | C154: 2 | D154: ПРЖ | E154: твер. | F154: 32 | G154: 3 | H154: 3 | I154: 33 | J154: 33 | K154: так | L154: - | M154: С02ЛКБ5427147 | N154: 2018-01-18 | O154: ДЛГ | P154: - | Q154: -
B155: Снітинське | C155: 2 | D155: ПРЖ | E155: хв. | F155: 34 | G155: 3 | H155: 6 | I155: 58 | J155: 56 | K155: так | L155: - | M155: С02ЛКБ005343 | N155: 2018-08-17 | O155: ДЛГ | P155: - | Q155: -
B156: Снітинське | C156: 2 | D156: ПРЖ | E156: хв. | F156: 37 | G156: 1 | H156: 1.1 | I156: 29 | J156: 25 | K156: так | L156: - | M156: С02ЛКБ005343 | N156: 2018-08-17 | O156: ДЛГ | P156: - | Q156: -
B157: Фастівське | C157: 4 | D157: ПРЖ | E157: твер. | F157: 79 | G157: 2 | H157: 1.4 | I157: 34 | J157: 30 | K157: так | L157: - | M157: С02ЛКБ005305 | N157: 2018-06-20 | O157: ДЛГ | P157: - | Q157: -
B158: Фастівське | C158: 2 | D158: ПРЖ | E158: твер. | F158: 38 | G158: 25 | H158: 2.6 | I158: 55 | J158: 51 | K158: так | L158: - | M158: С02ЛКБ005352 | N158: 2018-08-31 | O158: ДЛГ | P158: - | Q158: -
B159: Всього | D159: ПРЖ | H159: =SUM(H142:H158) -> 57.1 | I159: =SUM(I142:I158) -> 1839 | J159: =SUM(J142:J158) -> 1187
B160: Снітинське | C160: 2 | D160: ПРХ | E160: хв. | F160: 34 | G160: 9 | H160: 5.2 | I160: 268 | J160: 266 | K160: так | L160: - | M160: С02ЛКБ005346 | N160: 2018-08-22 | O160: ДЛГ | P160: - | Q160: -
B161: Снітинське | C161: 2 | D161: ПРХ | E161: хв. | F161: 34 | G161: 8 | H161: 1.1 | I161: 102 | J161: 90 | K161: так | L161: - | M161: С02ЛКБ005346 | N161: 2018-08-22 | O161: ДЛГ | P161: - | Q161: -
B162: Фастівське | C162: 4 | D162: ПРХ | E162: твер. | F162: 88 | G162: 4 | H162: 1.6 | I162: 97 | J162: 85 | K162: так | L162: - | M162: С02ЛКБ005350 | N162: 2018-08-30 | O162: ДЛГ | P162: - | Q162: -
B163: Всього | D163: ПРХ | H163: =SUM(H160:H162) -> 7.9 | I163: =SUM(I160:I162) -> 467 | J163: 441
B164: Веприківське | C164: 4 | D164: СРВ | E164: хв. | F164: 37 | G164: 48 | H164: 3.4 | I164: 403 | J164: 357 | K164: - | L164: так | M164: С02ЛКБ542698 | N164: 2018-01-02 | O164: ДЛГ | P164: - | Q164: -
B165: Веприківське | C165: 4 | D165: СРВ | E165: хв. | F165: 15 | G165: 1 | H165: 1.8 | I165: 104 | J165: 95 | K165: - | L165: так | M165: С02ЛКБ542698 | N165: 2018-01-02 | O165: ДЛГ | P165: - | Q165: -
B166: Веприківське | C166: 4 | D166: СРВ | E166: хв. | F166: 30 | G166: 18 | H166: 2.5 | I166: 246 | J166: 217 | K166: - | L166: так | M166: С02ЛКБ542698 | N166: 2018-01-02 | O166: ДЛГ | P166: - | Q166: -
B167: Веприківське | C167: 4 | D167: СРВ | E167: хв. | F167: 30 | G167: 17 | H167: 1.4 | I167: 219 | J167: 193 | K167: - | L167: так | M167: С02ЛКБ542698 | N167: 2018-01-02 | O167: ДЛГ | P167: - | Q167: -
B168: Веприківське | C168: 4 | D168: СРВ | E168: хв. | F168: 15 | G168: 18 | H168: 5 | I168: 125 | J168: 113 | K168: - | L168: так | M168: С02ЛКБ542698 | N168: 2018-01-02 | O168: ДЛГ | P168: - | Q168: -
B169: Веприківське | C169: 4 | D169: СРВ | E169: хв. | F169: 15 | G169: 15 | H169: 2.8 | I169: 28 | J169: 25 | K169: - | L169: так | M169: С02ЛКБ542698 | N169: 2018-01-02 | O169: ДЛГ | P169: - | Q169: -
B170: Веприківське | C170: 4 | D170: СРВ | E170: хв. | F170: 15 | G170: 16 | H170: 2.7 | I170: 93 | J170: 84 | K170: - | L170: так | M170: С02ЛКБ542698 | N170: 2018-01-02 | O170: ДЛГ | P170: - | Q170: -
B171: Веприківське | C171: 4 | D171: СРВ | E171: хв. | F171: 15 | G171: 17 | H171: 2.6 | I171: 66 | J171: 60 | K171: - | L171: так | M171: С02ЛКБ542698 | N171: 2018-01-02 | O171: ДЛГ | P171: - | Q171: -
B172: Веприківське | C172: 4 | D172: СРВ | E172: хв. | F172: 9 | G172: 19 | H172: 1.9 | I172: 161 | J172: 147 | K172: - | L172: так | M172: С02ЛКБ542698 | N172: 2018-01-02 | O172: ДЛГ | P172: - | Q172: -
B173: Веприківське | C173: 4 | D173: СРВ | E173: хв. | F173: 37 | G173: 51 | H173: 1 | I173: 146 | J173: 130 | K173: - | L173: так | M173: С02ЛКБ542698 | N173: 2018-01-02 | O173: ДЛГ | P173: - | Q173: -
B174: Веприківське | C174: 4 | D174: СРВ | E174: хв. | F174: 65 | G174: 2 | H174: 5.3 | I174: 159 | J174: 139 | K174: - | L174: так | M174: С02ЛКБ542697 | N174: 2018-01-02 | O174: ДЛГ | P174: - | Q174: -
B175: Веприківське | C175: 4 | D175: СРВ | E175: хв. | F175: 65 | G175: 4 | H175: 5.8 | I175: 465 | J175: 413 | K175: - | L175: так | M175: С02ЛКБ542697 | N175: 2018-01-02 | O175: ДЛГ | P175: - | Q175: -
B176: Веприківське | C176: 4 | D176: СРВ | E176: хв. | F176: 77 | G176: 18 | H176: 2.7 | I176: 261 | J176: 231 | K176: - | L176: так | M176: С02ЛКБ542697 | N176: 2018-01-02 | O176: ДЛГ | P176: - | Q176: -
B177: Веприківське | C177: 4 | D177: СРВ | E177: хв. | F177: 78 | G177: 3 | H177: 3.8 | I177: 910 | J177: 815 | K177: - | L177: так | M177: С02ЛКБ542697 | N177: 2018-01-02 | O177: ДЛГ | P177: - | Q177: -
B178: Веприківське | C178: 4 | D178: СРВ | E178: хв. | F178: 84 | G178: 4 | H178: 2.2 | I178: 107 | J178: 95 | K178: - | L178: так | M178: С02ЛКБ542697 | N178: 2018-01-02 | O178: ДЛГ | P178: - | Q178: -
B179: Веприківське | C179: 4 | D179: СРВ | E179: хв. | F179: 40 | G179: 11 | H179: 0.9 | I179: 99 | J179: 88 | K179: - | L179: так | M179: С02ЛКБ542697 | N179: 2018-01-02 | O179: ДЛГ | P179: - | Q179: -
B180: Веприківське | C180: 4 | D180: СРВ | E180: хв. | F180: 67 | G180: 5 | H180: 2.8 | I180: 205 | J180: 183 | K180: - | L180: так | M180: С02ЛКБ542697 | N180: 2018-01-02 | O180: ДЛГ | P180: - | Q180: -
B181: Веприківське | C181: 4 | D181: СРВ | E181: хв. | F181: 40 | G181: 8 | H181: 1.9 | I181: 144 | J181: 127 | K181: - | L181: так | M181: С02ЛКБ542697 | N181: 2018-01-02 | O181: ДЛГ | P181: - | Q181: -
B182: Веприківське | C182: 4 | D182: СРВ | E182: хв. | F182: 79 | G182: 6 | H182: 1.3 | I182: 186 | J182: 170 | K182: - | L182: так | M182: С02ЛКБ542697 | N182: 2018-01-02 | O182: ДЛГ | P182: - | Q182: -
B183: Веприківське | C183: 4 | D183: СРВ | E183: хв. | F183: 84 | G183: 9 | H183: 1.1 | I183: 117 | J183: 105 | K183: - | L183: так | M183: С02ЛКБ542697 | N183: 2018-01-02 | O183: ДЛГ | P183: - | Q183: -
B184: Веприківське | C184: 4 | D184: СРВ | E184: твер. | F184: 89 | G184: 15 | H184: 1.5 | I184: 43 | J184: 41 | K184: - | L184: так | M184: С02ЛКБ542697 | N184: 2018-01-02 | O184: ДЛГ | P184: - | Q184: -
B185: Веприківське | C185: 4 | D185: СРВ | E185: твер. | F185: 87 | G185: 6 | H185: 2.2 | I185: 151 | J185: 137 | K185: - | L185: так | M185: С02ЛКБ542697 | N185: 2018-01-02 | O185: ДЛГ | P185: - | Q185: -
B186: Веприківське | C186: 4 | D186: СРВ | E186: твер. | F186: 78 | G186: 4 | H186: 1.5 | I186: 72 | J186: 66 | K186: - | L186: так | M186: С02ЛКБ542697 | N186: 2018-01-02 | O186: ДЛГ | P186: - | Q186: -
B187: Веприківське | C187: 4 | D187: СРВ | E187: твер. | F187: 84 | G187: 5 | H187: 1.6 | I187: 111 | J187: 102 | K187: - | L187: так | M187: С02ЛКБ542697 | N187: 2018-01-02 | O187: ДЛГ | P187: - | Q187: -
B188: Веприківське | C188: 4 | D188: СРВ | E188: хв. | F188: 78 | G188: 11 | H188: 4 | I188: 417 | J188: 368 | K188: - | L188: так | M188: С02ЛКБ542719 | N188: 2018-01-19 | O188: ДЛГ | P188: - | Q188: -
B189: Веприківське | C189: 4 | D189: СРВ | E189: хв. | F189: 50 | G189: 15 | H189: 13.8 | I189: 420 | J189: 356 | K189: - | L189: так | M189: С02ЛКБ542719 | N189: 2018-01-19 | O189: ДЛГ | P189: - | Q189: -
B190: Веприківське | C190: 4 | D190: СРВ | E190: хв. | F190: 32 | G190: 18 | H190: 6.1 | I190: 747 | J190: 597 | K190: - | L190: так | M190: С02ЛКБ542719 | N190: 2018-01-19 | O190: ДЛГ | P190: - | Q190: -
B191: Веприківське | C191: 4 | D191: СРВ | E191: хв. | F191: 9 | G191: 15 | H191: 1.3 | I191: 112 | J191: 102 | K191: - | L191: так | M191: С02ЛКБ542719 | N191: 2018-01-19 | O191: ДЛГ | P191: - | Q191: -
B192: Веприківське | C192: 4 | D192: СРВ | E192: хв. | F192: 30 | G192: 5 | H192: 4 | I192: 761 | J192: 684 | K192: - | L192: так | M192: С02ЛКБ542737 | N192: 2018-03-22 | O192: ДЛГ | P192: - | Q192: -
B193: Веприківське | C193: 4 | D193: СРВ | E193: хв. | F193: 60 | G193: 3 | H193: 1.3 | I193: 55 | J193: 49 | K193: - | L193: так | M193: С02ЛКБ542737 | N193: 2018-03-22 | O193: ДЛГ | P193: - | Q193: -
B194: Веприківське | C194: 4 | D194: СРВ | E194: хв. | F194: 24 | G194: 3 | H194: 3.5 | I194: 20 | J194: 18 | K194: - | L194: так | M194: С02ЛКБ542741 | N194: 2018-03-29 | O194: ДЛГ | P194: - | Q194: -
B195: Веприківське | C195: 4 | D195: СРВ | E195: хв. | F195: 10 | G195: 4.1 | H195: 18.6 | I195: 1692 | J195: 1521 | K195: - | L195: так | M195: С02ЛКБ542741 | N195: 2018-03-29 | O195: ДЛГ | P195: - | Q195: -
B196: Веприківське | C196: 4 | D196: СРВ | E196: хв. | F196: 31 | G196: 1 | H196: 0.4 | I196: 81 | J196: 72 | K196: - | L196: так | M196: С02ЛКБ005284 | N196: 2018-04-24 | O196: ДЛГ | P196: - | Q196: -
B197: Веприківське | C197: 4 | D197: СРВ | E197: хв. | F197: 31 | G197: 2 | H197: 1.3 | I197: 225 | J197: 203 | K197: - | L197: так | M197: С02ЛКБ005284 | N197: 2018-04-24 | O197: ДЛГ | P197: - | Q197: -
B198: Веприківське | C198: 4 | D198: СРВ | E198: хв. | F198: 42 | G198: 2 | H198: 5.4 | I198: 683 | J198: 620 | K198: - | L198: так | M198: С02ЛКБ005284 | N198: 2018-04-24 | O198: ДЛГ | P198: - | Q198: -
B199: Веприківське | C199: 4 | D199: СРВ | E199: хв. | F199: 42 | G199: 8 | H199: 7.4 | I199: 1132 | J199: 1024 | K199: - | L199: так | M199: С02ЛКБ005284 | N199: 2018-04-24 | O199: ДЛГ | P199: - | Q199: -
B200: Веприківське | C200: 4 | D200: СРВ | E200: хв. | F200: 74 | G200: 10 | H200: 4.1 | I200: 555 | J200: 499 | K200: - | L200: так | M200: С02ЛКБ005299 | N200: 2018-05-31 | O200: ДЛГ | P200: - | Q200: -
B201: Веприківське | C201: 4 | D201: СРВ | E201: хв. | F201: 44 | G201: 9 | H201: 0.9 | I201: 67 | J201: 60 | K201: - | L201: так | M201: С02ЛКБ005307 | N201: 2018-06-25 | O201: ДЛГ | P201: - | Q201: -
B202: Веприківське | C202: 4 | D202: СРВ | E202: хв. | F202: 44 | G202: 20 | H202: 1.8 | I202: 217 | J202: 197 | K202: - | L202: так | M202: С02ЛКБ005307 | N202: 2018-06-25 | O202: ДЛГ | P202: - | Q202: -
B203: Веприківське | C203: 4 | D203: СРВ | E203: хв. | F203: 13 | G203: 14 | H203: 1.6 | I203: 45 | J203: 34 | K203: - | L203: так | M203: С02ЛКБ005307 | N203: 2018-06-25 | O203: ДЛГ | P203: - | Q203: -
B204: Веприківське | C204: 4 | D204: СРВ | E204: хв. | F204: 50 | G204: 18 | H204: 0.6 | I204: 24 | J204: 22 | K204: - | L204: так | M204: С02ЛКБ005307 | N204: 2018-06-25 | O204: ДЛГ | P204: - | Q204: -
B205: Веприківське | C205: 4 | D205: СРВ | E205: хв. | F205: 50 | G205: 16 | H205: 0.3 | I205: 9 | J205: 8 | K205: - | L205: так | M205: С02ЛКБ005307 | N205: 2018-06-25 | O205: ДЛГ | P205: - | Q205: -
B206: Веприківське | C206: 4 | D206: СРВ | E206: хв. | F206: 50 | G206: 17 | H206: 0.8 | I206: 58 | J206: 50 | K206: - | L206: так | M206: С02ЛКБ005307 | N206: 2018-06-25 | O206: ДЛГ | P206: - | Q206: -
B207: Веприківське | C207: 4 | D207: СРВ | E207: хв. | F207: 24 | G207: 4 | H207: 16.4 | I207: 331 | J207: 295 | K207: - | L207: так | M207: С02ЛКБ005308 | N207: 2018-06-25 | O207: ДЛГ | P207: - | Q207: -
B208: Веприківське | C208: 4 | D208: СРВ | E208: хв. | F208: 44 | G208: 19 | H208: 1.4 | I208: 183 | J208: 166 | K208: - | L208: так | M208: С02ЛКБ005308 | N208: 2018-06-25 | O208: ДЛГ | P208: - | Q208: -
B209: Веприківське | C209: 4 | D209: СРВ | E209: хв. | F209: 88 | G209: 38 | H209: 1.4 | I209: 151 | J209: 137 | K209: - | L209: так | M209: С02ЛКБ005308 | N209: 2018-06-25 | O209: ДЛГ | P209: - | Q209: -
B210: Веприківське | C210: 4 | D210: СРВ | E210: хв. | F210: 88 | G210: 44 | H210: 1.4 | I210: 76 | J210: 69 | K210: - | L210: так | M210: С02ЛКБ005308 | N210: 2018-06-25 | O210: ДЛГ | P210: - | Q210: -
B211: Веприківське | C211: 4 | D211: СРВ | E211: хв. | F211: 88 | G211: 16 | H211: 0.6 | I211: 67 | J211: 60 | K211: - | L211: так | M211: С02ЛКБ005308 | N211: 2018-06-25 | O211: ДЛГ | P211: - | Q211: -
B212: Веприківське | C212: 4 | D212: СРВ | E212: твер. | F212: 48 | G212: 7 | H212: 0.9 | I212: 102 | J212: 97 | K212: - | L212: так | M212: С02ЛКБ005321 | N212: 2018-07-20 | O212: ДЛГ | P212: - | Q212: -
B213: Веприківське | C213: 4 | D213: СРВ | E213: твер. | F213: 48 | G213: 11 | H213: 1.3 | I213: 230 | J213: 115 | K213: - | L213: так | M213: С02ЛКБ005321 | N213: 2018-07-20 | O213: ДЛГ | P213: - | Q213: -
B214: Веприківське | C214: 4 | D214: СРВ | E214: хв. | F214: 13 | G214: 1 | H214: 2.2 | I214: 80 | J214: 67 | K214: - | L214: так | M214: С02ЛКБ005326 | N214: 2018-07-30 | O214: ДЛГ | P214: - | Q214: -
B215: Веприківське | C215: 4 | D215: СРВ | E215: хв. | F215: 32 | G215: 12 | H215: 8.1 | I215: 744 | J215: 583 | K215: - | L215: так | M215: С02ЛКБ005326 | N215: 2018-07-30 | O215: ДЛГ | P215: - | Q215: -
B216: Веприківське | C216: 4 | D216: СРВ | E216: хв. | F216: 42 | G216: 5 | H216: 9 | I216: 1065 | J216: 935 | K216: - | L216: так | M216: С02ЛКБ005326 | N216: 2018-07-30 | O216: ДЛГ | P216: - | Q216: -
B217: Веприківське | C217: 4 | D217: СРВ | E217: хв. | F217: 42 | G217: 12 | H217: 0.3 | I217: 28 | J217: 24 | K217: - | L217: так | M217: С02ЛКБ005326 | N217: 2018-07-30 | O217: ДЛГ | P217: - | Q217: -
B218: Веприківське | C218: 4 | D218: СРВ | E218: хв. | F218: 43 | G218: 12 | H218: 1.3 | I218: 87 | J218: 76 | K218: - | L218: так | M218: С02ЛКБ005326 | N218: 2018-07-30 | O218: ДЛГ | P218: - | Q218: -
... 384 more rows
